bitfinex/quotes_SOLUSD_20240530
["timestamp","ask_amount","ask_price","bid_price","bid_amount"]
[1717108351011,1.431,166.87,166.74,11.21907425]
[1717108351218,1.431,166.87,166.74,29.19907425]
[1717108355028,1.431,166.87,166.75,20.1988]
[1717108355427,1.431,166.87,166.74,76.61007425]
[1717108355428,1.431,166.87,166.74,20.1989]
[1717108356010,1.431,166.87,166.73,17.98]
[1717108356211,1.431,166.87,166.73,20.1991]
[1717108358731,6.23015719,166.86,166.73,20.1991]
[1717108358929,1.431,166.85,166.73,20.1991]
[1717108359512,1.431,166.83,166.71,26.98007425]
[1717108359745,1.431,166.83,166.7,11.21957425]
[1717108359922,1.431,166.83,166.7,2.2195]
[1717108360507,1.431,166.83,166.7,20.1995]
[1717108361422,1.431,166.83,166.71,20.1994]
[1717108362517,1.431,166.83,166.72,2.2192]
[1717108362720,1.431,166.83,166.71,2.2193]
[1717108364412,1.431,166.83,166.72,2.2192]
[1717108366634,1.431,166.83,166.71,2.2193]
[1717108368620,1.431,166.83,166.72,2.2192]
[1717108369033,7.65762866,166.83,166.72,2.2192]
[1717108370733,1.431,166.82,166.69,17.98]
[1717108370922,1.431,166.82,166.7,2.2195]
[1717108371234,1.431,166.82,166.69,17.98]
[1717108371639,1.431,166.82,166.69,20.1996]
[1717108374541,2.2191,166.74,166.69,20.1996]
[1717108376544,2.2191,166.73,166.69,20.1996]
[1717108379236,2.2191,166.73,166.69,17.98]
[1717108379748,2.2191,166.73,166.69,20.1996]
[1717108380450,2.219,166.74,166.69,20.1996]
[1717108380950,2.2191,166.73,166.69,20.1996]
[1717108381845,2.219,166.74,166.69,20.1996]
[1717108382425,2.2191,166.73,166.69,20.1996]
[1717108384343,2.2191,166.73,166.69,17.98]
[1717108384952,2.2191,166.73,166.69,20.1996]
[1717108385140,2.219,166.74,166.69,20.1996]
[1717108386947,2.2191,166.73,166.69,20.1996]
[1717108387451,2.219,166.74,166.69,20.1996]
[1717108387658,2.2189,166.75,166.7,20.1994]
[1717108387856,2.2187,166.76,166.71,21.39770685]
[1717108388542,2.2186,166.77,166.73,17.98]
[1717108388848,2.2186,166.77,166.72,20.1991]
[1717108389249,2.2187,166.76,166.72,20.1991]
[1717108389453,2.2187,166.76,166.71,2.2193]
[1717108390159,2.2187,166.76,166.71,20.1993]
[1717108390537,2.2187,166.76,166.72,2.2192]
[1717108391057,2.2186,166.77,166.72,2.2192]
[1717108391256,2.219,166.74,166.68,80.1997]
[1717108391455,1.431,166.79,166.68,77.98]
[1717108391456,2.2191,166.73,166.68,77.98]
[1717108391759,1.431,166.79,166.7,77.98]
[1717108391946,2.2186,166.77,166.72,17.98]
[1717108392844,2.2185,166.78,166.72,77.98]
[1717108393642,2.2185,166.78,166.72,80.1992]
[1717108393841,1.431,166.83,166.73,17.98]
[1717108394038,2.2187,166.77,166.73,17.98]
[1717108394666,2.2185,166.78,166.73,17.98]
[1717108395546,2.2186,166.77,166.73,17.98]
[1717108396364,2.2186,166.77,166.72,17.98]
[1717108398267,1.431,166.83,166.72,17.98]
[1717108398774,2.2186,166.78,166.72,77.98]
[1717108399268,2.2186,166.78,166.72,80.1992]
[1717108399776,2.2186,166.77,166.72,77.98]
[1717108401175,2.2186,166.77,166.72,17.98]
[1717108402976,2.2187,166.76,166.72,17.98]
[1717108403178,2.2187,166.76,166.71,17.98]
[1717108404473,2.219,166.74,166.69,17.98]
[1717108404677,2.2188,166.75,166.69,20.1996]
[1717108404878,2.2188,166.75,166.7,20.1995]
[1717108407275,3.6497,166.76,166.7,20.1995]
[1717108408164,2.2189,166.75,166.69,20.1996]
[1717108408980,2.2189,166.75,166.7,2.2195]
[1717108410083,2.2189,166.75,166.7,20.1995]
[1717108410564,1.431,166.81,166.72,17.98]
[1717108410770,1.431,166.81,166.72,20.1992]
[1717108411076,1.431,166.81,166.72,17.98]
[1717108416083,1.431,166.81,166.72,20.1992]
[1717108417772,1.431,166.81,166.72,80.1992]
[1717108418167,1.431,166.81,166.74,17.98]
[1717108418880,1.431,166.81,166.74,77.98]
[1717108419267,1.431,166.81,166.74,80.199]
[1717108419972,1.431,166.81,166.76,20.1987]
[1717108420375,1.431,166.81,166.76,17.98]
[1717108421071,1.431,166.81,166.75,17.98]
[1717108421582,1.431,166.81,166.74,17.98]
[1717108421767,2.2184,166.78,166.74,17.98]
[1717108424389,2.2184,166.78,166.74,20.1989]
[1717108424889,2.2184,166.79,166.74,20.1989]
[1717108425973,2.2184,166.79,166.75,2.2188]
[1717108426879,2.2184,166.79,166.74,20.1989]
[1717108429489,2.2184,166.79,166.75,2.2188]
[1717108433391,2.2182,166.8,166.75,20.1988]
[1717108433688,2.2181,166.81,166.76,20.1987]
[1717108434094,2.2181,166.81,166.77,2.2186]
[1717108434890,2.2181,166.81,166.76,20.1986]
[1717108435596,2.2182,166.8,166.76,20.1986]
[1717108436989,2.218,166.82,166.77,17.98]
[1717108437179,1.431,166.86,166.77,20.1985]
[1717108440886,2.218,166.82,166.77,20.1985]
[1717108442886,1.431,166.86,166.77,20.1985]
[1717108442887,2.2179,166.83,166.79,20.1983]
[1717108443089,2.2177,166.84,166.79,17.98]
[1717108443603,2.2177,166.84,166.79,20.1982]
[1717108443988,2.2177,166.84,166.8,20.1981]
[1717108446982,2.2176,166.85,166.8,80.1981]
[1717108447396,2.2176,166.85,166.81,20.198]
[1717108448181,2.2172,166.88,166.83,17.98]
[1717108448486,2.2173,166.87,166.83,20.1977]
[1717108449610,2.2171,166.88,166.85,17.98]
[1717108451214,2.2171,166.88,166.84,2.2176]
[1717108451383,2.2174,166.86,166.82,2.2178]
[1717108451713,2.2176,166.85,166.81,2.218]
[1717108452089,0.4198,166.93,166.79,2.2183]
[1717108452090,1.431,166.88,166.79,2.2183]
[1717108452403,2.2177,166.84,166.8,2.2182]
[1717108454503,2.2176,166.85,166.8,2.2182]
[1717108455206,1.431,166.85,166.78,17.98]
[1717108455409,1.431,166.91,166.77,17.98]
[1717108455707,2.218,166.82,166.77,20.1985]
[1717108456499,2.218,166.82,166.78,2.2184]
[1717108457420,2.218,166.82,166.77,20.1985]
[1717108459820,2.218,166.81,166.77,20.1985]
[1717108462834,1.431,166.81,166.75,17.98]
[1717108463124,0.4198,166.86,166.71,45.0043324]
[1717108463125,1.431,166.8,166.71,45.0043324]
[1717108463424,1.431,166.8,166.71,36.01]
[1717108464136,2.2185,166.78,166.74,20.1989]
[1717108464896,2.2184,166.79,166.74,20.1989]
[1717108465099,3.6494,166.79,166.74,20.1989]
[1717108466113,2.2185,166.78,166.74,20.1989]
[1717108466317,2.2186,166.77,166.73,2.2191]
[1717108466525,2.2186,166.77,166.72,17.98]
[1717108467327,2.2186,166.77,166.71,17.98]
[1717108467633,2.2186,166.77,166.73,2.2191]
[1717108470139,2.2185,166.78,166.73,2.2191]
[1717108470820,2.2186,166.77,166.73,2.2191]
[1717108471226,2.2185,166.78,166.74,20.199]
[1717108471707,2.2185,166.78,166.74,17.98]
[1717108471908,6.23541344,166.85,166.71,17.98]
[1717108471909,1.431,166.8,166.71,17.98]
[1717108472111,2.2189,166.75,166.71,17.98]
[1717108472501,2.2189,166.75,166.71,2.2193]
[1717108472698,2.2188,166.76,166.71,2.2193]
[1717108472930,2.2188,166.76,166.71,20.1993]
[1717108475323,2.2188,166.76,166.72,2.2192]
[1717108475537,2.2186,166.77,166.73,20.1991]
[1717108479427,2.2186,166.77,166.72,20.1992]
[1717108481223,2.2186,166.77,166.74,17.98]
[1717108482231,2.2185,166.78,166.74,17.98]
[1717108482523,1.431,166.8,166.72,20.1992]
[1717108482524,2.2187,166.77,166.72,20.1992]
[1717108482732,2.2187,166.76,166.72,20.1992]
[1717108486324,2.2186,166.77,166.72,2.2192]
[1717108489935,2.2186,166.77,166.73,2.2191]
[1717108490831,2.2186,166.77,166.72,2.2192]
[1717108492626,2.2186,166.77,166.73,2.2191]
[1717108494844,2.2186,166.77,166.72,2.2192]
[1717108495744,2.2186,166.77,166.73,2.2191]
[1717108496046,2.2185,166.78,166.73,2.2191]
[1717108497245,2.2186,166.77,166.73,2.2191]
[1717108501925,2.2189,166.75,166.68,26.98429774]
[1717108502130,2.2189,166.75,166.7,2.2194]
[1717108506050,7.66474663,166.8,166.7,2.2194]
[1717108507045,7.66474663,166.8,166.69,29.20389774]
[1717108509346,7.66474663,166.8,166.7,9.00429774]
[1717108509846,2.2191,166.74,166.7,9.00429774]
[1717108510754,2.2191,166.73,166.7,9.00429774]
[1717108510957,2.2192,166.73,166.68,29.20399774]
[1717108513460,2.2193,166.72,166.68,29.20399774]
[1717108513938,1.431,166.79,166.68,9.00429774]
[1717108514142,1.431,166.8,166.67,9.00429774]
[1717108514462,2.2196,166.7,166.67,9.00429774]
[1717108515450,2.2196,166.7,166.65,20.2001]
[1717108521976,2.2196,166.69,166.65,20.2001]
[1717108522184,1.431,166.74,166.64,20.2002]
[1717108522362,0.4198,166.76,166.64,20.2002]
[1717108522363,3.6507,166.69,166.64,20.2002]
[1717108523050,1.431,166.69,166.65,2.2202]
[1717108523276,1.431,166.69,166.64,20.2003]
[1717108523756,3.6507,166.69,166.64,20.2003]
[1717108527159,2.2198,166.68,166.64,20.2003]
[1717108530181,1.431,166.69,166.61,17.98]
[1717108530182,2.2199,166.67,166.61,17.98]
[1717108530485,2.22,166.67,166.62,20.2005]
[1717108530988,2.22,166.66,166.62,20.2005]
[1717108531290,1.431,166.69,166.62,20.2005]
[1717108532471,1.431,166.69,166.61,2.2206]
[1717108532681,1.431,166.69,166.59,7.61]
[1717108533191,1.431,166.69,166.61,2.2207]
[1717108535265,2.2202,166.65,166.6,2.2208]
[1717108537476,2.2203,166.64,166.6,2.2208]
[1717108538395,2.2203,166.64,166.58,25.89508815]
[1717108538396,2.2203,166.64,166.59,2.2209]
[1717108541298,2.2205,166.63,166.59,2.2209]
[1717108542887,2.2204,166.64,166.6,2.2208]
[1717108543089,2.2202,166.65,166.6,9.8308]
[1717108543973,1.431,166.69,166.62,17.98]
[1717108544291,2.2197,166.69,166.64,27.8103]
[1717108544506,1.431,166.73,166.66,27.81]
[1717108544507,2.2194,166.71,166.66,27.81]
[1717108545394,1.431,166.73,166.67,2.2198]
[1717108545565,2.2193,166.72,166.67,27.8098]
[1717108545995,1.431,166.77,166.69,17.98]
[1717108546493,2.2191,166.74,166.69,20.1996]
[1717108546870,1.431,166.77,166.69,17.98]
[1717108549376,1.431,166.77,166.68,17.98]
[1717108550290,2.2194,166.72,166.68,17.98]
[1717108550490,2.2195,166.7,166.66,20.2]
[1717108550695,2.2195,166.7,166.65,2.2201]
[1717108550878,2.2197,166.69,166.65,2.2201]
[1717108551693,2.2196,166.7,166.65,20.2001]
[1717108551895,2.2197,166.69,166.64,20.2002]
[1717108552073,2.2197,166.69,166.64,27.8102]
[1717108552704,2.2197,166.69,166.65,20.2002]
[1717108553289,2.2196,166.7,166.65,20.2002]
[1717108556076,2.2196,166.7,166.66,20.2]
[1717108556377,2.2194,166.71,166.66,20.2]
[1717108557183,2.2195,166.7,166.66,20.2]
[1717108560884,2.2197,166.69,166.65,2.2201]
[1717108562197,2.2196,166.7,166.65,2.2201]
[1717108562718,2.2196,166.69,166.64,2.2203]
[1717108563006,2.2203,166.65,166.61,9.00899687]
[1717108563306,2.2201,166.66,166.62,2.2206]
[1717108563514,2.22,166.67,166.62,20.2006]
[1717108563815,2.22,166.67,166.63,0.72929976]
[1717108563994,2.2198,166.68,166.64,1.93774091]
[1717108564187,1.431,166.7,166.63,20.2004]
[1717108564188,2.2199,166.67,166.63,20.2004]
[1717108564403,2.2199,166.67,166.63,17.98]
[1717108565786,2.2201,166.66,166.62,7.61]
[1717108565986,2.2201,166.66,166.61,20.2006]
[1717108566214,2.2201,166.66,166.61,27.8106]
[1717108568616,2.2201,166.66,166.61,20.2006]
[1717108568811,2.2201,166.66,166.61,27.8106]
[1717108570595,2.2201,166.66,166.61,20.2006]
[1717108572912,1.431,166.7,166.6,17.98]
[1717108573116,2.2203,166.65,166.6,2.2208]
[1717108573606,2.2203,166.65,166.59,34.59928268]
[1717108573607,1.431,166.7,166.63,25.59]
[1717108573813,1.431,166.74,166.63,25.59]
[1717108573993,2.2199,166.68,166.63,25.59]
[1717108574419,2.2199,166.68,166.64,7.61]
[1717108574626,2.2197,166.69,166.65,7.61]
[1717108574811,2.2197,166.69,166.65,9.8302]
[1717108575115,2.2197,166.69,166.65,2.2202]
[1717108575500,2.2195,166.7,166.65,20.2002]
[1717108577592,2.2195,166.7,166.66,20.2]
[1717108577798,2.2194,166.71,166.66,20.2]
[1717108578118,2.2195,166.7,166.66,20.2]
[1717108578999,2.2194,166.71,166.66,87.81]
[1717108579322,0.4198,166.77,166.68,20.1997]
[1717108579494,7.68605198,166.78,166.69,27.8096]
[1717108579696,2.219,166.74,166.7,2.2195]
[1717108580319,2.219,166.74,166.69,27.8096]
[1717108580707,2.2191,166.73,166.69,27.8096]
[1717108582118,2.2192,166.72,166.69,17.98]
[1717108582415,2.2192,166.73,166.69,17.98]
[1717108582802,2.2192,166.73,166.69,20.1996]
[1717108583820,2.2192,166.73,166.69,26.5203]
[1717108584326,1.431,166.78,166.7,20.1995]
[1717108584327,2.219,166.74,166.7,20.1995]
[1717108585719,2.219,166.74,166.7,17.98]
[1717108585917,2.219,166.74,166.7,26.844]
[1717108586219,2.2189,166.75,166.71,20.1994]
[1717108586412,2.2189,166.75,166.71,17.98]
[1717108586816,2.219,166.74,166.71,17.98]
[1717108587213,2.2189,166.75,166.71,17.98]
[1717108587607,1.8508,166.82,166.72,17.98]
[1717108587608,1.431,166.82,166.72,17.98]
[1717108587801,1.431,166.82,166.72,20.1992]
[1717108588212,2.2188,166.76,166.72,26.6235]
[1717108588925,2.2188,166.76,166.72,24.4043]
[1717108589620,2.2188,166.76,166.72,26.6235]
[1717108590010,2.2188,166.76,166.71,20.1993]
[1717108590614,2.2188,166.76,166.72,2.2192]
[1717108591112,2.2188,166.76,166.72,20.1992]
[1717108591328,2.2188,166.76,166.72,2.2192]
[1717108591508,2.2189,166.75,166.7,20.1994]
[1717108591710,2.219,166.74,166.7,20.1994]
[1717108592216,2.2189,166.75,166.7,20.1994]
[1717108592425,2.2189,166.75,166.7,26.6836]
[1717108592633,2.2189,166.75,166.71,2.2194]
[1717108592818,2.2188,166.76,166.72,6.0645]
[1717108593327,2.2189,166.75,166.71,18.0313]
[1717108593540,1.431,166.82,166.71,2.2194]
[1717108593715,2.2188,166.76,166.72,2.2192]
[1717108594323,2.2189,166.75,166.71,2.2193]
[1717108594842,2.2188,166.76,166.71,2.2193]
[1717108595329,2.2188,166.75,166.71,2.2193]
[1717108596414,1.431,166.82,166.71,2.2193]
[1717108597937,2.2189,166.75,166.71,2.2193]
[1717108598940,2.2188,166.76,166.71,20.1993]
[1717108599132,2.2188,166.76,166.72,2.2192]
[1717108601033,2.2188,166.76,166.72,20.1992]
[1717108601237,1.431,166.82,166.73,2.219]
[1717108601534,2.2186,166.78,166.74,2.219]
[1717108603140,1.431,166.82,166.74,2.219]
[1717108603526,2.2184,166.78,166.74,2.219]
[1717108603845,2.2184,166.78,166.74,8.5179]
[1717108604017,2.2184,166.79,166.74,80.199]
[1717108604223,2.2184,166.79,166.75,42.7491]
[1717108604416,2.2182,166.8,166.76,2.2187]
[1717108604720,2.2182,166.8,166.76,26.4976]
[1717108606430,2.2182,166.8,166.76,20.1987]
[1717108606630,2.2181,166.81,166.77,24.1062]
[1717108607542,2.2182,166.8,166.77,24.1062]
[1717108609248,2.2181,166.81,166.77,24.1062]
[1717108609625,2.2182,166.8,166.77,24.1062]
[1717108612527,2.2182,166.8,166.77,6.1262]
[1717108612721,2.2183,166.79,166.75,2.2188]
[1717108615168,2.2182,166.8,166.76,2.2187]
[1717108615469,1.431,166.86,166.73,89.0591]
[1717108615470,2.2183,166.79,166.75,2.2188]
[1717108616264,2.2182,166.8,166.75,2.2188]
[1717108616435,2.2182,166.8,166.76,2.2187]
[1717108619159,2.2185,166.78,166.74,2.219]
[1717108619353,2.2185,166.78,166.73,2.2191]
[1717108621351,2.2185,166.78,166.74,2.219]
[1717108622804,2.2185,166.78,166.73,2.219]
[1717108623764,7.69571883,166.86,166.7,2.2195]
[1717108623765,1.431,166.81,166.7,2.2195]
[1717108623945,1.431,166.81,166.69,2.2196]
[1717108624669,1.431,166.81,166.67,17.98]
[1717108624866,1.431,166.81,166.69,2.2196]
[1717108625739,6.26060355,166.8,166.69,2.2196]
[1717108626954,6.26060355,166.8,166.69,20.1996]
[1717108627252,1.431,166.81,166.7,2.2195]
[1717108628059,2.219,166.75,166.7,2.2195]
[1717108628557,2.219,166.74,166.7,17.98]
[1717108637471,2.2187,166.76,166.72,17.98]
[1717108637977,2.2186,166.77,166.72,26.5466]
[1717108638562,2.2185,166.78,166.74,94.1563]
[1717108638752,2.2184,166.79,166.75,0.42522908]
[1717108638965,2.2185,166.78,166.75,0.42522908]
[1717108639657,2.2184,166.79,166.75,0.42522908]
[1717108640466,2.2185,166.78,166.75,0.42522908]
[1717108641077,2.2186,166.77,166.74,17.98]
[1717108641957,2.2185,166.78,166.74,17.98]
[1717108642458,2.2185,166.78,166.73,20.199]
[1717108643786,2.2184,166.79,166.74,20.1989]
[1717108644673,2.2185,166.78,166.73,2.219]
[1717108644879,2.2185,166.78,166.73,20.199]
[1717108648074,2.2185,166.78,166.74,20.1989]
[1717108649178,2.2185,166.78,166.74,17.98]
[1717108649374,2.2186,166.77,166.73,2.2191]
[1717108649574,2.2186,166.77,166.73,20.1991]
[1717108650974,2.2185,166.78,166.73,20.1991]
[1717108651764,2.2185,166.78,166.74,2.219]
[1717108652962,2.2185,166.78,166.73,20.199]
[1717108653985,7.68771224,166.85,166.71,2.2193]
[1717108654177,7.68771224,166.85,166.71,20.1993]
[1717108654497,2.2189,166.75,166.7,2.2195]
[1717108655292,2.2189,166.75,166.7,20.1995]
[1717108656180,2.2189,166.75,166.71,20.1994]
[1717108656489,2.2188,166.76,166.71,20.1994]
[1717108660095,2.2188,166.75,166.71,20.1994]
[1717108662083,2.2188,166.76,166.71,20.1994]
[1717108662470,1.431,166.79,166.71,20.1994]
[1717108662798,2.2188,166.75,166.71,17.98]
[1717108663295,2.2188,166.75,166.7,2.2194]
[1717108663494,2.2188,166.75,166.7,20.1994]
[1717108665991,1.431,166.79,166.69,2.2196]
[1717108666191,1.431,166.79,166.68,20.1996]
[1717108666694,2.219,166.74,166.69,20.1996]
[1717108666990,1.431,166.79,166.71,20.1993]
[1717108667377,2.2189,166.75,166.71,20.1993]
[1717108667598,2.2189,166.75,166.71,17.98]
[1717108668302,2.2189,166.75,166.7,2.2194]
[1717108668883,2.219,166.74,166.69,20.1996]
[1717108671812,2.219,166.74,166.7,2.2195]
[1717108672109,1.431,166.79,166.69,2.2196]
[1717108672312,2.2191,166.73,166.68,20.1997]
[1717108674433,2.2191,166.73,166.69,2.2196]
[1717108676400,2.219,166.74,166.69,2.2196]
[1717108676807,2.2191,166.73,166.69,2.2196]
[1717108677195,2.2191,166.73,166.68,20.1997]
[1717108677497,2.2192,166.72,166.67,2.2199]
[1717108677701,2.2192,166.72,166.67,2.2198]
[1717108680404,2.2192,166.72,166.67,20.1998]
[1717108681514,2.2196,166.7,166.67,17.98]
[1717108681709,2.2194,166.71,166.67,17.98]
[1717108681913,2.2194,166.71,166.67,20.1999]
[1717108682310,2.2193,166.72,166.67,20.1999]
[1717108684219,2.2194,166.71,166.67,2.2199]
[1717108684427,2.2195,166.7,166.66,2.22]
[1717108684626,2.2195,166.7,166.65,20.2001]
[1717108686416,2.2195,166.7,166.66,2.22]
[1717108686609,2.2194,166.71,166.66,2.22]
[1717108687850,2.2194,166.71,166.67,2.2199]
[1717108690030,2.2194,166.71,166.66,20.2]
[1717108692825,2.2195,166.7,166.66,20.2]
[1717108696633,2.2194,166.71,166.66,80.2]
[1717108697326,2.2194,166.71,166.66,87.81]
[1717108698031,2.2194,166.71,166.68,17.98]
[1717108699031,2.2194,166.71,166.67,17.98]
[1717108700637,2.2195,166.7,166.67,17.98]
[1717108703623,2.2194,166.71,166.67,17.98]
[1717108704732,2.2195,166.7,166.67,17.98]
[1717108708833,2.2194,166.71,166.68,17.98]
[1717108716552,2.2193,166.72,166.68,27.8098]
[1717108717249,1.431,166.76,166.68,27.8098]
[1717108717250,2.2192,166.73,166.7,17.98]
[1717108718147,2.2193,166.72,166.7,17.98]
[1717108718349,2.2193,166.72,166.69,17.98]
[1717108720035,6.26685596,166.82,166.73,2.219]
[1717108720236,1.431,166.84,166.76,17.98]
[1717108720433,2.2183,166.79,166.76,17.98]
[1717108720837,2.2182,166.8,166.76,80.1987]
[1717108721154,2.2182,166.8,166.76,77.98]
[1717108721938,2.2182,166.8,166.76,80.1987]
[1717108722148,2.218,166.81,166.76,80.1987]
[1717108722340,2.2179,166.82,166.78,17.98]
[1717108722936,2.2178,166.83,166.78,20.1984]
[1717108723137,2.2179,166.82,166.78,20.1984]
[1717108723736,2.2179,166.82,166.77,20.1985]
[1717108724461,2.2179,166.82,166.77,27.8085]
[1717108724640,2.2179,166.82,166.77,20.1985]
[1717108731650,2.2179,166.82,166.78,1.21115637]
[1717108733054,2.2179,166.82,166.78,3.42955637]
[1717108734154,2.2179,166.82,166.78,1.21115637]
[1717108734473,2.2181,166.81,166.77,2.2185]
[1717108734675,2.2182,166.8,166.75,17.98]
[1717108735177,2.2182,166.8,166.76,2.2186]
[1717108735550,2.2181,166.81,166.76,2.2186]
[1717108740973,2.2182,166.8,166.76,2.2186]
[1717108741380,2.2182,166.8,166.75,20.1988]
[1717108742272,2.2182,166.8,166.76,2.2187]
[1717108743249,2.2182,166.8,166.76,2.2186]
[1717108745170,1.431,166.82,166.75,20.1988]
[1717108748684,2.2182,166.8,166.75,20.1988]
[1717108751254,2.2183,166.79,166.75,20.1988]
[1717108760575,2.2183,166.79,166.75,2.2188]
[1717108760884,2.2186,166.77,166.73,2.219]
[1717108761378,1.431,166.82,166.74,2.219]
[1717108761379,2.2185,166.78,166.74,2.219]
[1717108761991,2.2186,166.77,166.73,2.2191]
[1717108768490,2.2187,166.76,166.73,2.2191]
[1717108769285,2.2186,166.77,166.73,2.2191]
[1717108769690,2.2186,166.77,166.74,17.98]
[1717108771894,1.431,166.82,166.74,85.59]
[1717108772194,1.431,166.82,166.75,20.1988]
[1717108772195,2.2184,166.79,166.75,20.1988]
[1717108773802,2.2182,166.8,166.76,2.2187]
[1717108776193,2.2183,166.79,166.75,20.1988]
[1717108776393,2.2182,166.8,166.76,80.1987]
[1717108777887,2.2182,166.8,166.76,20.1987]
[1717108778289,2.2182,166.8,166.75,20.1988]
[1717108778589,2.2185,166.78,166.74,20.1989]
[1717108780903,2.2184,166.79,166.74,20.1989]
[1717108781099,2.2184,166.79,166.75,2.2188]
[1717108781485,2.2184,166.79,166.75,20.1988]
[1717108786203,2.2182,166.8,166.76,2.2187]
[1717108788477,2.2183,166.79,166.75,20.1988]
[1717108792211,2.2182,166.8,166.76,2.2187]
[1717108797190,2.2183,166.79,166.75,20.1988]
[1717108800396,2.2182,166.8,166.76,2.2187]
[1717108801999,2.2185,166.78,166.74,2.2189]
[1717108802186,2.2185,166.78,166.74,20.1989]
[1717108802514,2.2185,166.78,166.75,17.98]
[1717108802700,2.2184,166.79,166.75,20.1988]
[1717108802899,2.2185,166.78,166.75,20.1988]
[1717108803206,2.2184,166.79,166.75,20.1988]
[1717108803410,1.431,166.85,166.74,17.98]
[1717108803820,2.2186,166.77,166.73,2.219]
[1717108804488,2.2185,166.78,166.74,2.219]
[1717108804700,2.2186,166.77,166.73,2.2191]
[1717108806418,2.2185,166.78,166.74,2.2189]
[1717108808227,2.2186,166.77,166.74,2.2189]
[1717108809825,2.2186,166.77,166.73,2.219]
[1717108812726,2.2185,166.78,166.74,2.219]
[1717108815414,2.2186,166.77,166.74,2.219]
[1717108816419,2.2185,166.78,166.74,2.219]
[1717108817519,2.2186,166.77,166.74,2.219]
[1717108818231,2.2186,166.77,166.73,29.20253024]
[1717108818832,2.2186,166.77,166.73,20.199]
[1717108819727,2.2186,166.77,166.73,29.20253024]
[1717108820530,2.2186,166.77,166.73,20.199]
[1717108821337,2.2186,166.77,166.73,29.20253024]
[1717108823530,2.2186,166.77,166.73,20.199]
[1717108824027,2.2186,166.77,166.74,1.19868141]
[1717108831213,2.2186,166.77,166.73,20.199]
[1717108831538,2.2186,166.77,166.73,29.20253024]
[1717108834941,2.2186,166.77,166.74,26.98353024]
[1717108836319,2.2186,166.77,166.74,20.199]
[1717108836623,2.2185,166.78,166.74,29.20195122]
[1717108841545,2.2185,166.78,166.74,89.20195122]
[1717108841749,1.431,166.84,166.77,17.98]
[1717108841750,2.2182,166.8,166.77,17.98]
[1717108842347,2.2183,166.79,166.75,20.1988]
[1717108842742,2.2182,166.8,166.76,2.2187]
[1717108848656,1.431,166.84,166.76,17.98]
[1717108849034,2.218,166.82,166.78,2.2184]
[1717108849747,2.218,166.82,166.77,2.2185]
[1717108850137,2.2181,166.81,166.77,2.2185]
[1717108852553,2.2181,166.81,166.77,20.1985]
[1717108852758,2.2182,166.8,166.76,2.2187]
[1717108853337,2.2181,166.81,166.76,2.2187]
[1717108853539,2.2181,166.81,166.77,2.2186]
[1717108853952,1.431,166.84,166.76,2.2187]
[1717108853953,2.2182,166.8,166.76,2.2187]
[1717108859257,2.2182,166.8,166.76,2.84281628]